bitfinex/quotes_ETHUSD_20250904
["timestamp","ask_amount","ask_price","bid_price","bid_amount"]
[1756995275964,9.99428665,4343.9,4343.8,0.0084]
[1756995277270,9.99228665,4343.9,4343.8,0.0084]
[1756995277469,10.10748665,4343.9,4343.8,0.0084]
[1756995277838,3.1152,4343.9,4343.8,0.3036]
[1756995278050,7.5752,4343.9,4343.8,1.2193]
[1756995278235,4.5752,4343.9,4343.8,1.2193]
[1756995278871,0.1152,4343.9,4343.8,1.2193]
[1756995279072,4.5742,4343.9,4343.8,1.2193]
[1756995279492,10.33369877,4343.9,4343.8,0.0084]
[1756995280170,3.57262,4343.9,4343.8,0.0084]
[1756995280384,10.33269877,4343.9,4343.8,0.0084]
[1756995280948,8.03062,4343.9,4343.8,0.0084]
[1756995281184,5.87469877,4343.9,4343.8,0.0084]
[1756995281344,11.06129877,4343.9,4343.8,0.0084]
[1756995281545,11.52339877,4343.9,4343.8,0.0084]
[1756995282380,10.33169877,4343.9,4343.8,0.0084]
[1756995282565,10.62389877,4343.9,4343.8,0.0084]
[1756995283279,11.52139877,4343.9,4343.8,0.0084]
[1756995283481,3.57262,4343.9,4343.8,0.3036]
[1756995283681,9.87227877,4343.9,4343.8,0.0084]
[1756995284245,2.30237019,4343.4,4343.1,0.2006]
[1756995284480,1.696,4343.4,4343.1,0.2006]
[1756995284640,1.696,4343.4,4343.3,0.2952]
[1756995284846,4.454,4343.4,4343.3,0.7387]
[1756995285770,4.454,4343.4,4343.3,3.04109679]
[1756995285992,4.453,4343.4,4343.3,0.7387]
[1756995286397,4.453,4343.4,4343.3,3.51329679]
[1756995286594,4.453,4343.4,4343.3,1.2109]
[1756995286765,4.453,4343.4,4343.3,3.51329679]
[1756995287384,0.1152,4343.6,4343.5,2.30229077]
[1756995287871,4.5672,4343.6,4343.5,1.2109]
[1756995288067,0.1152,4343.6,4343.5,3.86451394]
[1756995288373,1.696,4344.3,4344.0,2.30200266]
[1756995288582,4.451,4344.2,4344.1,1.01839024]
[1756995288782,4.5662,4344.2,4344.1,1.31359024]
[1756995289164,4.5662,4344.2,4344.1,3.61556303]
[1756995289472,4.476,4344.8,4344.7,2.30165488]
[1756995289671,4.476,4344.8,4344.7,3.61524512]
[1756995290082,0.025,4344.8,4344.7,3.61524512]
[1756995290772,0.025,4344.8,4344.7,3.73044512]
[1756995291093,4.474,4344.8,4344.7,0.39789024]
[1756995291407,0.1394,4344.8,4344.7,0.2952]
[1756995291609,0.0242,4344.8,4344.7,3.04035488]
[1756995291791,0.0242,4344.8,4344.7,3.62775488]
[1756995292671,0.0242,4344.8,4344.7,4.30455488]
[1756995292866,0.0242,4344.8,4344.7,5.30038024]
[1756995293116,0.0242,4344.8,4344.7,3.62775488]
[1756995293271,0.0252,4344.8,4344.7,3.62775488]
[1756995294096,0.0252,4344.8,4344.7,1.2109]
[1756995294299,0.0252,4344.8,4344.7,3.04035488]
[1756995294610,0.0252,4344.8,4344.7,3.51255488]
[1756995296176,0.0252,4344.8,4344.7,1.2109]
[1756995296376,0.0252,4344.8,4344.7,3.51255488]
[1756995296679,0.0252,4344.8,4344.4,0.1152]
[1756995297010,0.0252,4344.8,4344.7,2.59685488]
[1756995297372,0.0252,4344.8,4344.0,0.9157]
[1756995297573,0.1152,4344.6,4344.0,1.0309]
[1756995297777,0.1152,4344.6,4344.5,2.30176084]
[1756995298080,0.1152,4344.6,4344.4,2.30177491]
[1756995298279,0.1152,4344.6,4344.5,0.2952]
[1756995298490,0.0252,4344.8,4344.7,2.30165488]
[1756995298893,0.0252,4344.8,4344.7,3.51255488]
[1756995299107,0.0252,4344.8,4344.7,1.80385157]
[1756995299321,0.0252,4344.8,4344.7,3.04035488]
[1756995299499,0.0252,4344.8,4344.7,2.59685488]
[1756995300082,0.0252,4344.8,4344.7,3.04035488]
[1756995300283,0.0252,4344.8,4344.7,4.34267142]
[1756995300483,0.0252,4344.8,4344.7,4.43485488]
[1756995300792,0.001,4345.3,4345.2,3.09339003]
[1756995300997,0.001,4345.3,4345.2,14.7984243]
[1756995301210,0.001,4345.3,4345.2,0.8709]
[1756995301517,0.001,4345.3,4344.6,0.1152]
[1756995301694,0.3084,4345.3,4344.8,2.30157672]
[1756995302016,0.1152,4344.7,4344.5,2.30171535]
[1756995302204,0.1152,4344.7,4344.4,2.30181382]
[1756995302406,0.1152,4344.7,4344.6,2.60840786]
[1756995302588,0.1162,4345.3,4344.6,0.4219]
[1756995302788,0.0230024,4345.2,4344.6,0.4219]
[1756995302988,0.1652,4344.8,4344.1,0.1152]
[1756995303319,0.1652,4344.8,4343.4,0.792]
[1756995303320,0.1152,4344.2,4343.4,1.0515]
[1756995303513,0.1152,4344.2,4343.4,0.5642]
[1756995303724,0.1152,4344.2,4343.1,0.004]
[1756995303725,0.4226,4343.5,4343.1,0.004]
[1756995303890,4.4590024,4343.4,4343.1,0.004]
[1756995304087,0.1152,4343.2,4343.1,0.004]
[1756995304289,4.5512,4343.2,4343.1,0.004]
[1756995304788,5.7787,4343.2,4343.1,0.004]
[1756995305029,11.66132004,4343.2,4343.1,0.004]
[1756995305635,9.35887024,4343.2,4343.1,0.004]
[1756995305838,11.66132004,4343.2,4343.1,0.004]
[1756995306441,4.5492,4343.2,4343.1,0.004]
[1756995306586,4.5492,4343.2,4343.1,0.3107]
[1756995306921,4.434,4343.9,4343.2,2.3024498]
[1756995307089,0.1152,4343.4,4343.1,0.004]
[1756995307297,0.1152,4343.4,4343.2,2.3024498]
[1756995307520,0.1152,4343.4,4343.1,0.004]
[1756995307723,0.1152,4343.4,4343.2,2.30243822]
[1756995308032,0.1152,4343.4,4343.1,0.004]
[1756995308195,2.6098498,4343.2,4343.1,0.004]
[1756995308554,5.6328522,4343.2,4343.1,0.004]
[1756995308730,6.5299498,4343.2,4343.1,0.004]
[1756995309543,10.9619498,4343.2,4343.1,0.004]
[1756995309953,6.5299498,4343.2,4343.1,0.004]
[1756995310162,8.16988217,4343.2,4343.1,0.004]
[1756995310365,12.60088217,4343.2,4343.1,0.004]
[1756995310516,8.16988217,4343.2,4343.1,0.004]
[1756995310712,12.60088217,4343.2,4343.1,0.004]
[1756995311266,12.60088217,4343.2,4342.8,0.025]
[1756995311267,3.0,4343.1,4342.8,0.025]
[1756995311424,5.30260885,4342.9,4342.8,0.025]
[1756995311755,3.4226,4342.9,4342.6,1e-08]
[1756995311925,6.0947149,4342.7,4342.6,1e-08]
[1756995312560,7.43859803,4342.7,4342.6,1e-08]
[1756995312735,9.706506,4342.7,4342.6,1e-08]
[1756995313564,13.22812287,4342.7,4342.6,1e-08]
[1756995313745,7.92440797,4342.7,4342.6,1e-08]
[1756995313947,7.9592149,4342.7,4342.6,1e-08]
[1756995314248,10.9592149,4342.7,4342.6,1e-08]
[1756995314444,2.24702561,4343.1,4342.6,1e-08]
[1756995314648,0.1152,4342.7,4342.6,1e-08]
[1756995314824,4.5432,4342.7,4342.6,1e-08]
[1756995315229,0.1152,4342.7,4342.6,3.54576793]
[1756995315663,1.697,4344.2,4342.6,1.24300001]
[1756995315827,3.284,4344.1,4342.7,1.7283]
[1756995316038,3.284,4344.1,4344.0,0.3067]
[1756995316243,3.3070024,4344.1,4342.9,2.30259571]
[1756995316455,3.3062024,4344.1,4342.9,2.30260748]
[1756995316654,1.697,4344.2,4344.0,0.3067]
[1756995316853,1.697,4344.2,4344.1,0.9363]
[1756995317073,6.124,4344.2,4344.1,1.243]
[1756995317573,6.124,4344.2,4344.1,0.3067]
[1756995317961,6.124,4344.2,4344.1,2.60867279]
[1756995318163,7.0438,4344.2,4342.8,0.4873]
[1756995318474,7.0438,4344.2,4342.6,1e-08]
[1756995318475,2.30202578,4344.0,4342.6,1e-08]
[1756995318640,3.0,4344.1,4342.6,1e-08]
[1756995318847,2.30244998,4343.2,4342.6,1e-08]
[1756995319049,6.1450024,4343.1,4342.6,1e-08]
[1756995319364,1.697,4343.1,4343.0,0.3067]
[1756995319540,6.121,4343.1,4342.6,1e-08]
[1756995319738,2.30255583,4343.0,4342.6,1e-08]
[1756995319948,0.0230024,4342.9,4342.6,1e-08]
[1756995320378,1.697,4343.1,4342.6,1e-08]
[1756995320542,1.697,4343.1,4342.6,0.44900001]
[1756995320742,4.423,4343.0,4342.6,0.44900001]
[1756995320963,4.423,4343.0,4342.8,2.30261949]
[1756995321168,1.697,4343.1,4342.9,0.3067]
[1756995321365,4.423,4343.0,4342.9,0.7557]
[1756995321679,4.423,4343.0,4342.9,0.3067]
[1756995321892,4.423,4343.0,4342.6,1e-08]
[1756995322177,2.30266278,4342.8,4342.6,1e-08]
[1756995322385,0.0230024,4342.7,4342.6,1e-08]
[1756995322675,2.3257173,4342.7,4342.6,1e-08]
[1756995322976,3.5532173,4342.7,4342.6,1e-08]
[1756995323271,1.08908295,4342.7,4342.6,1e-08]
[1756995323649,7.4979173,4342.7,4342.6,1e-08]
[1756995323948,7.9512149,4342.7,4342.6,1e-08]
[1756995324479,10.9512149,4342.7,4342.6,1e-08]
[1756995325646,11.0664149,4342.7,4342.6,1e-08]
[1756995326166,11.0644149,4342.7,4342.6,1e-08]
[1756995326343,12.4623174,4342.7,4342.6,1e-08]
[1756995326548,7.5995174,4342.7,4342.6,1e-08]
[1756995326772,12.4613174,4342.7,4342.6,1e-08]
[1756995328952,13.1381174,4342.7,4342.6,1e-08]
[1756995329152,13.1381174,4342.7,4341.8,0.025]
[1756995329153,3.792,4342.1,4341.8,1e-08]
[1756995329397,3.792,4342.1,4337.4,0.4873]
[1756995329398,2.30319222,4341.8,4337.4,0.4873]
[1756995329694,2.61213161,4338.9,4337.3,0.449]
[1756995329863,10.001,4338.9,4337.8,0.474]
[1756995330067,14.417,4338.9,4337.8,0.474]
[1756995330383,18.39390429,4338.9,4337.8,0.474]
[1756995330554,16.08917268,4338.9,4337.8,0.474]
[1756995330754,18.39390429,4338.9,4337.8,0.474]
[1756995331183,18.68880429,4338.9,4337.8,0.474]
[1756995331352,16.08817268,4338.9,4337.8,0.474]
[1756995331691,0.10429813,4339.9,4338.8,0.8002]
[1756995331865,0.10429813,4339.9,4338.8,1.286]
[1756995331866,3.0,4339.7,4338.8,1.286]
[1756995332067,0.0230024,4339.6,4338.8,0.3353]
[1756995332256,4.415,4339.5,4338.8,0.3353]
[1756995332451,0.0230024,4339.4,4338.8,0.3353]
[1756995332785,4.415,4339.3,4338.9,0.4649]
[1756995333082,0.0230024,4339.2,4338.8,0.029]
[1756995333385,0.10429813,4339.9,4339.0,2.30467849]
[1756995333386,4.414,4339.1,4339.0,2.30467849]
[1756995333549,4.414,4339.1,4339.0,0.4649]
[1756995333750,4.414,4339.1,4339.0,3.56567849]
[1756995333979,4.414,4339.1,4339.0,0.3103]
[1756995334180,6.5524,4339.1,4338.8,0.029]
[1756995334572,6.111,4339.1,4338.8,0.029]
[1756995334794,0.0230024,4339.0,4338.8,0.029]
[1756995335074,6.05983161,4338.9,4338.8,0.029]
[1756995335272,6.50993161,4338.9,4338.8,0.029]
[1756995336156,10.92293161,4338.9,4338.8,0.029]
[1756995336362,3.0,4338.8,4336.5,2.79179644]
[1756995336564,3.0,4338.8,4336.5,0.4858]
[1756995336565,2.30526291,4337.9,4336.5,0.4858]
[1756995336753,9.11,4337.9,4336.7,2.3058993]
[1756995336977,9.11,4337.9,4336.7,0.4649]
[1756995337176,4.698,4337.9,4336.7,0.4649]
[1756995337690,11.41526291,4337.9,4336.7,0.4649]
[1756995337982,6.07004327,4337.9,4337.1,0.4649]
[1756995338182,4.411,4338.6,4337.8,1.286]
[1756995338353,4.411,4338.6,4337.9,0.4649]
[1756995338557,0.0230024,4338.5,4337.9,0.4649]
[1756995338759,0.63620264,4338.5,4337.8,0.025]
[1756995338992,1.698,4338.7,4338.4,0.3103]
[1756995339191,4.411,4338.6,4338.5,2.7698441]
[1756995339492,4.411,4339.5,4338.5,0.9507]
[1756995339669,4.411,4339.4,4338.6,0.9507]
[1756995339865,0.1152,4339.1,4339.0,2.30465805]
[1756995340063,0.1152,4339.1,4339.0,3.71630764]
[1756995340387,4.5252,4339.4,4339.3,2.30451916]
[1756995340691,4.5252,4339.4,4339.3,3.25521916]
[1756995340865,0.1152,4339.4,4339.3,0.9507]
[1756995341190,0.1152,4339.4,4339.3,0.4649]
[1756995341565,2.30451916,4339.3,4338.5,0.4858]
[1756995341770,2.30451916,4339.3,4337.5,16.25735198]
[1756995341771,0.1152,4338.6,4338.0,0.5801]
[1756995341972,0.1152,4338.6,4338.2,2.30508651]
[1756995342172,0.1152,4338.6,4338.3,0.9507]
[1756995342173,0.1144,4338.6,4338.3,0.9507]
[1756995342372,0.1144,4338.6,4338.0,0.1152]
[1756995342373,4.409,4339.1,4338.8,2.3047587]
[1756995342692,0.1152,4338.9,4338.4,0.4858]
[1756995342866,0.1152,4338.6,4338.0,0.5801]
[1756995343290,0.1152,4338.3,4338.0,0.4649]
[1756995343494,0.1152,4338.3,4338.1,0.9507]
[1756995343679,0.1152,4338.3,4338.2,0.4649]
[1756995343881,0.1152,4338.3,4338.2,3.56610349]
[1756995344085,0.1152,4338.3,4338.2,0.3103]
[1756995344393,0.1152,4338.3,4337.8,0.025]
[1756995344578,0.1152,4337.9,4337.8,0.025]
[1756995344893,0.1152,4337.9,4337.8,3.59126444]
[1756995345079,0.1152,4337.9,4337.8,1.286]
[1756995345396,0.1152,4337.9,4337.8,3.59131605]
[1756995345773,0.1152,4337.9,4337.8,1.286]
[1756995345970,0.1152,4337.9,4337.8,3.10551605]
[1756995346285,0.1152,4339.2,4338.3,0.792]
[1756995346484,0.1152,4339.2,4339.1,2.61492538]
[1756995346793,0.1152,4339.2,4338.9,2.30470105]
[1756995346794,4.431,4339.8,4338.9,15.46535198]
[1756995346995,0.025,4339.8,4339.7,2.30430674]
[1756995347308,0.025,4339.8,4338.2,4.406]
[1756995347309,0.025,4339.8,4338.8,15.46535198]
[1756995347496,0.025,4339.8,4338.7,4.405]
[1756995347497,0.025,4339.8,4339.7,2.48420674]
[1756995347659,0.025,4339.8,4339.7,2.5072498]
[1756995347993,0.025,4339.8,4339.7,2.48420674]
[1756995348807,1e-08,4339.8,4339.7,3.38860674]
[1756995348972,0.025,4340.8,4339.8,2.30425365]
[1756995349309,0.025,4340.8,4340.7,2.30377588]
[1756995349666,0.025,4340.8,4340.7,2.59607588]
[1756995350188,0.025,4340.8,4340.7,0.1799]
[1756995350504,0.025,4340.8,4340.7,2.48367588]
[1756995350703,0.025,4340.8,4340.7,2.30377588]
[1756995351214,3.08383994,4340.8,4339.8,2.30420689]
[1756995351372,3.08383994,4340.8,4339.1,2.30462538]
[1756995351373,0.74858399,4340.7,4339.1,2.30462538]
[1756995351697,5.15058399,4340.7,4339.8,2.30424472]
[1756995351995,5.15058399,4340.7,4340.0,2.30414099]
[1756995352212,5.15058399,4340.7,4340.2,2.30402584]
[1756995352415,5.15058399,4340.7,4339.0,2.30467042]
[1756995352416,0.2949,4340.3,4339.0,2.30467042]
[1756995352565,0.2949,4340.3,4338.6,6.099]
[1756995352770,0.2949,4340.3,4338.7,2.30483785]
[1756995352997,4.4,4340.5,4338.8,0.1124]
[1756995353203,0.026,4340.8,4339.1,17.18930407]
[1756995353500,6.72972883,4340.8,4339.2,2.30457227]
[1756995353674,2.30378298,4340.7,4339.7,2.3042806]
[1756995353869,2.30383308,4340.6,4339.1,17.18930407]
[1756995354174,4.426,4340.8,4339.1,17.18930407]
[1756995354380,0.026,4340.8,4339.1,17.18930407]
[1756995354580,2.30404073,4340.3,4338.8,4.5114]
[1756995354789,2.78727867,4340.2,4338.6,1.698]
[1756995354969,3.0,4340.6,4338.7,2.30483785]
[1756995355170,0.57932,4340.7,4338.9,2.30473161]
[1756995355398,0.57932,4340.7,4338.8,17.18930407]
[1756995355399,4.8842,4340.8,4339.0,0.1124]
[1756995355606,0.026,4340.8,4339.4,17.18930407]
[1756995355908,0.026,4340.8,4340.7,2.30377588]
[1756995356121,0.026,4340.8,4340.0,21.58730407]
[1756995356275,0.026,4340.8,4340.7,2.30377588]
[1756995356772,0.026,4340.8,4340.7,2.48367588]
[1756995357102,0.026,4340.8,4340.7,2.59607588]
[1756995357293,0.026,4340.8,4340.7,2.71127588]
[1756995358193,1e-08,4340.8,4340.7,2.71127588]
[1756995358520,1e-08,4340.8,4340.7,8.04848876]
[1756995359177,1e-08,4340.8,4340.7,6.99387588]
[1756995359376,1e-08,4340.8,4340.7,7.10627588]
[1756995359604,1e-08,4340.8,4340.7,2.59887588]
[1756995359826,1e-08,4340.8,4340.7,2.62191363]
[1756995360075,1e-08,4340.8,4340.7,2.59887588]
[1756995360715,1e-08,4340.8,4340.7,2.41897588]
[1756995360872,1e-08,4340.8,4340.7,2.30377588]
[1756995361498,1e-08,4340.8,4340.7,2.95595865]
[1756995361742,1e-08,4340.8,4340.7,2.30377588]
[1756995362612,1e-08,4340.8,4340.7,2.48367588]
[1756995362811,1e-08,4340.8,4340.7,2.30377588]
[1756995363013,1e-08,4340.8,4340.7,6.87567588]
[1756995363215,1e-08,4340.8,4340.7,7.78007588]
[1756995363428,1e-08,4340.8,4340.7,10.89527588]
[1756995363821,1e-08,4340.8,4340.7,11.19687588]
[1756995364023,0.025,4342.8,4342.7,2.3027149]
[1756995364738,0.025,4342.8,4342.7,2.4826149]
[1756995365327,0.025,4342.8,4342.7,2.3027149]
[1756995365504,0.025,4342.8,4341.8,4.389]
[1756995365505,1.288,4342.8,4341.8,4.389]
[1756995365711,0.1288,4342.7,4341.8,4.389]
[1756995366013,0.1288,4342.7,4341.8,2.30317965]
[1756995366213,0.1288,4342.7,4340.5,22.49313372]
[1756995366214,0.4655,4342.6,4341.2,4.389]
[1756995366415,0.4655,4342.6,4341.9,2.30312838]
[1756995366623,0.4655,4342.6,4341.3,2.30345748]
[1756995366935,0.4655,4342.6,4341.2,4.389]
[1756995367140,0.54935,4342.6,4342.5,2.30282095]
[1756995367442,0.7768,4342.6,4341.1,17.18930407]
[1756995367739,0.7768,4342.6,4342.3,2.30289888]
[1756995367951,0.0242,4342.8,4342.5,2.30282095]
[1756995368122,0.0242,4342.8,4342.7,2.3027149]
[1756995368435,0.0242,4342.8,4341.9,4.387]
[1756995368436,0.3113,4342.6,4341.9,2.3031349]
[1756995368636,0.3113,4342.6,4342.3,2.30291678]
[1756995368855,0.0242,4342.8,4341.5,2.30335137]
[1756995369004,0.0242,4342.8,4342.7,2.3027149]
[1756995369505,0.0242,4342.8,4342.7,2.4826149]
[1756995370327,0.0242,4342.8,4342.7,2.3027149]
[1756995370527,0.0242,4342.8,4342.7,2.4826149]
[1756995370942,0.0242,4342.8,4342.7,2.5950149]
[1756995371106,0.0242,4342.8,4341.8,1.697]
[1756995371306,0.0242,4342.8,4342.7,2.3027149]
[1756995371705,0.0242,4342.8,4342.7,2.4826149]
[1756995371905,0.0242,4342.8,4342.7,2.3027149]
[1756995372117,0.0242,4342.8,4342.7,6.6867149]
[1756995373149,0.0242,4342.8,4342.7,6.8666149]
[1756995373352,0.0242,4342.8,4342.7,7.78355624]
[1756995374247,0.0242,4342.8,4342.7,6.6867149]
[1756995374612,0.0242,4342.8,4342.7,2.4179149]
[1756995375106,0.0242,4342.8,4342.7,2.5978149]
[1756995375624,0.0242,4342.8,4342.7,2.4179149]
[1756995375834,0.0242,4342.8,4342.7,2.5978149]
[1756995376141,0.05,4344.8,4344.0,2.30202578]
[1756995376339,0.05,4344.8,4344.0,7.47402578]
[1756995376504,0.05,4344.8,4344.0,10.88152578]
[1756995376706,0.05,4344.8,4344.0,10.76912578]
[1756995377137,0.05,4344.8,4344.0,9.97612578]
[1756995377437,0.05,4344.8,4344.0,10.53081982]
[1756995378136,0.05,4344.8,4344.0,7.53081982]
[1756995378926,0.05,4344.8,4344.0,7.35091982]
[1756995379126,0.05,4344.8,4344.0,6.97612578]
[1756995379643,0.05,4344.8,4344.0,2.59712578]
[1756995379875,0.05,4344.8,4344.0,6.97412578]
[1756995380049,0.05,4344.8,4344.0,6.97312578]
[1756995381016,0.05,4344.8,4344.0,2.59712578]
[1756995381220,0.05,4344.8,4344.0,6.97212578]
[1756995381418,0.05,4344.8,4344.0,6.79222578]
[1756995381627,0.05,4344.8,4344.0,11.84325827]
[1756995382026,0.05,4344.8,4344.0,11.95565827]
[1756995382226,1e-08,4344.8,4344.7,3.09365488]
[1756995382433,1e-08,4344.8,4344.7,10.58285488]
[1756995382630,1e-08,4344.8,4344.7,10.76275488]
[1756995382843,1e-08,4344.8,4344.7,11.16647777]
[1756995383320,1e-08,4344.8,4344.7,10.19457777]
[1756995384060,1e-08,4344.8,4344.7,6.78985488]
[1756995384352,1e-08,4344.8,4344.7,7.58185488]
[1756995384518,1e-08,4344.8,4344.7,6.67465488]
[1756995384714,1e-08,4344.8,4344.7,6.85455488]
[1756995385050,1e-08,4344.8,4344.7,7.64655488]
[1756995385249,1e-08,4344.8,4344.7,8.64138645]
[1756995385618,1e-08,4344.8,4344.7,28.83069052]
[1756995385819,1e-08,4344.8,4344.7,28.94309052]
[1756995386458,0.026,4345.8,4344.7,28.94309052]
[1756995386459,1e-08,4345.8,4345.7,3.09312525]
[1756995386616,1e-08,4345.8,4345.7,12.15912525]
[1756995386820,1e-08,4345.8,4345.7,12.82704906]
[1756995387018,1e-08,4346.5,4346.4,2.30075464]
[1756995387219,1e-08,4346.5,4346.4,9.67075464]
[1756995387440,1e-08,4346.5,4346.4,6.67075464]
[1756995387645,1e-08,4346.5,4346.4,8.35991296]
[1756995388252,1e-08,4346.5,4346.4,8.53981296]
[1756995388549,1e-08,4346.5,4346.4,8.57307111]
[1756995389364,0.77680001,4346.5,4346.4,6.88191279]
[1756995390023,0.77680001,4346.5,4346.4,0.21315815]
[1756995390222,1.35660001,4346.5,4346.4,6.66775464]
[1756995390556,0.77680001,4346.5,4346.4,2.51391279]
[1756995390736,0.77680001,4346.5,4346.4,6.66675464]
[1756995390929,0.46550001,4346.5,4346.4,6.87991279]
[1756995391145,1e-08,4346.5,4346.4,6.87991279]
[1756995391329,0.76670001,4346.5,4346.4,2.51391279]
[1756995391661,1.34650001,4346.5,4346.3,2.51394723]
[1756995391956,1.34650001,4346.5,4345.7,1.696]
[1756995391957,0.88160001,4346.5,4346.4,2.30075464]
[1756995392156,1e-08,4346.5,4346.4,2.30075464]
[1756995392460,1e-08,4346.5,4346.4,7.79698987]
[1756995392625,1e-08,4346.5,4346.4,6.87891279]
[1756995392626,0.76670001,4346.5,4346.4,6.87891279]
[1756995392957,0.76590001,4346.5,4346.4,6.87891279]
[1756995393632,0.4649,4346.5,4346.4,6.87891279]
[1756995393856,0.025,4346.8,4346.7,2.30059585]
[1756995394058,0.025,4346.8,4346.7,6.877754]
[1756995394262,0.025,4346.8,4346.7,8.58759957]
[1756995394475,1e-08,4346.8,4346.7,8.76879957]
[1756995394633,1e-08,4346.8,4346.7,11.88399957]
[1756995394833,1e-08,4346.8,4346.7,11.70279957]
[1756995395238,1e-08,4346.8,4346.7,2.628954]
[1756995395464,1e-08,4346.8,4346.7,6.991954]
[1756995395761,1e-08,4346.8,4346.7,6.77879585]
[1756995395963,1e-08,4346.8,4346.7,7.75199585]
[1756995396173,1e-08,4346.8,4346.7,6.77879585]
[1756995396380,1e-08,4346.8,4346.7,11.47874561]
[1756995396539,1e-08,4346.8,4346.7,13.56824116]
[1756995396742,1e-08,4346.8,4346.7,8.01874561]
[1756995396943,1e-08,4346.8,4346.7,11.47179585]
[1756995397145,1e-08,4346.8,4346.7,12.44499585]
[1756995397346,1e-08,4346.8,4346.7,11.47179585]
[1756995397665,1e-08,4346.8,4346.7,8.47179585]
[1756995397827,1e-08,4346.8,4346.7,4.11079585]
[1756995398033,0.76670001,4346.8,4346.7,6.77579585]
[1756995398464,1e-08,4346.8,4346.7,6.98928984]
[1756995398678,1e-08,4346.8,4346.7,2.62928984]
[1756995398989,1e-08,4346.8,4346.7,6.98928984]
[1756995399163,1e-08,4346.8,4346.7,7.918289]
[1756995400049,1e-08,4346.8,4346.7,6.98928984]
[1756995400485,0.76670001,4346.8,4346.7,2.62928984]
[1756995400702,0.76670001,4346.8,4346.7,6.98828984]
[1756995400979,0.76670001,4346.8,4346.5,2.30070101]
[1756995400980,1.34650001,4346.8,4345.5,4.358]
[1756995401191,0.4649,4346.7,4345.5,4.358]
[1756995401396,1e-08,4346.8,4346.7,2.30059585]
[1756995401881,1e-08,4346.8,4346.7,3.09259585]
[1756995402068,1e-08,4346.8,4346.7,3.27379585]
[1756995403683,1e-08,4346.8,4346.7,4.96879585]
[1756995403883,1e-08,4346.8,4346.7,6.13144227]
[1756995404087,1e-08,4346.8,4346.7,9.13144227]
[1756995404662,1e-08,4346.8,4346.7,13.48644227]
[1756995405184,1e-08,4346.8,4346.7,13.30524227]
[1756995405650,1e-08,4346.8,4346.7,13.48644227]
[1756995406278,1e-08,4347.8,4347.7,2.3000667]
[1756995406479,1e-08,4347.8,4347.7,13.5810667]
[1756995406650,1e-08,4347.8,4347.7,13.7622667]
[1756995407054,1e-08,4347.8,4347.7,13.5810667]
[1756995407252,1e-08,4347.8,4347.7,13.5800667]
[1756995407452,1e-08,4347.8,4347.7,14.92391312]
[1756995407847,1e-08,4347.8,4347.7,14.74271312]
[1756995408285,1e-08,4347.8,4347.7,10.38971312]
[1756995408454,1e-08,4347.8,4347.7,15.03711312]
[1756995408974,1e-08,4347.8,4347.7,14.92391312]
[1756995409360,1e-08,4347.8,4347.7,26.46804969]
[1756995409680,1e-08,4347.8,4347.7,13.48191312]
[1756995410283,1e-08,4347.8,4347.7,13.47629213]
[1756995410481,1e-08,4347.8,4347.7,3.9950667]
[1756995410665,0.45990001,4347.8,4347.7,8.3450667]
[1756995410860,0.76170001,4347.8,4347.7,4.1102667]
[1756995411065,0.76170001,4347.8,4347.7,11.4602667]
[1756995411275,0.001,4348.4,4347.8,2.3000138]
[1756995411476,0.001,4348.4,4347.8,3.0920138]
[1756995412186,0.3028,4347.9,4347.8,3.0920138]
[1756995412387,0.3028,4347.9,4347.8,7.4410138]
[1756995412589,0.3028,4347.9,4347.8,2.3000138]
[1756995412590,0.8826,4347.9,4347.8,2.3000138]
[1756995412899,0.8826,4347.9,4346.8,3.99454292]
[1756995412900,1.3475,4347.9,4347.1,4.349]
[1756995413106,0.4649,4347.8,4347.4,0.1152]
[1756995413286,0.5808,4347.9,4347.8,2.3000138]
[1756995413491,0.8826,4347.9,4347.8,2.3000138]
[1756995413869,0.7677,4347.9,4347.8,2.3000138]
[1756995414068,0.001,4347.9,4347.8,8.34634558]
[1756995414599,0.7677,4347.9,4347.8,3.20634558]
[1756995414800,0.7677,4347.9,4347.8,6.6470138]
[1756995415005,0.001,4347.9,4347.8,7.4390138]
[1756995416810,0.7677,4347.9,4347.8,6.6470138]
[1756995417009,0.7677,4347.9,4347.8,2.3000138]
[1756995417211,0.7677,4347.9,4347.8,6.6460138]
[1756995417909,1.3475,4347.9,4347.8,6.6460138]
[1756995418316,1.3467,4347.9,4347.8,6.6460138]
[1756995418525,1.3467,4347.9,4347.8,2.3000138]
[1756995418676,1.48137,4347.9,4347.8,2.3000138]
[1756995419012,1.3467,4347.9,4347.8,2.3000138]
[1756995419401,1.3467,4347.9,4346.8,4.19531821]
[1756995419699,0.4649,4347.8,4346.9,4.344]
[1756995419869,0.3018,4347.0,4346.8,0.025]
[1756995420272,1.0132,4346.9,4346.8,0.025]
[1756995420469,1.1447,4346.9,4346.8,0.025]
[1756995420670,3.73669,4346.9,4346.8,0.025]
[1756995421319,1.4362,4346.9,4346.8,0.025]
[1756995422000,3.73669,4346.9,4346.8,0.025]
[1756995422387,6.7596924,4346.9,4346.8,0.025]
[1756995422613,6.73669,4346.9,4346.8,0.025]
[1756995424016,3.0,4346.8,4346.3,0.004]
[1756995424220,2.41595464,4346.4,4346.3,0.004]
[1756995424424,5.73045704,4346.4,4346.3,0.004]
[1756995424721,6.72065464,4346.4,4346.3,0.004]
[1756995425219,4.4199,4346.4,4346.3,0.004]
[1756995425414,6.74365704,4346.4,4346.3,0.004]
[1756995425609,8.55107633,4346.4,4346.3,0.004]
[1756995425986,9.34307633,4346.4,4346.3,0.004]
[1756995426218,9.96709237,4346.4,4346.3,0.004]
[1756995426987,7.36212871,4346.4,4346.3,0.004]